fUSD/lending_fUSD_20260602
["ID","MTS","AMOUNT","RATE_DAILY","PERIOD"]
[423735436,1780348241000,-500.0,0.00013835,2]
[423735440,1780348241000,-500.0,0.00013835,2]
[423735448,1780348241000,-500.0,0.00013835,2]
[423735439,1780348241000,-500.0,0.00013835,2]
[423735427,1780348241000,-151.0,0.00013835,2]
[423735421,1780348241000,-500.0,0.00013829,2]
[423735408,1780348241000,-1500.0,0.00013777,2]
[423735407,1780348241000,-150.0,0.00013769,2]
[423735438,1780348241000,-500.0,0.00013835,2]
[423735385,1780348241000,-1430.34493756,0.00013699,2]
[423735384,1780348241000,-1430.34493756,0.00013699,2]
[423735381,1780348241000,-1430.34493756,0.00013699,2]
[423735383,1780348241000,-1430.34493756,0.00013699,2]
[423735382,1780348241000,-1430.34493756,0.00013699,2]
[423735393,1780348241000,-819.52,0.00013743,2]
[423735396,1780348241000,-500.0,0.00013743,2]
[423735394,1780348241000,-500.0,0.00013743,2]
[423735395,1780348241000,-722.51,0.00013743,2]
[423735389,1780348241000,-150.0,0.00013702,2]
[423735387,1780348241000,-150.0,0.00013702,2]
[423735392,1780348241000,-150.0,0.00013741,2]
[423735390,1780348241000,-150.0,0.00013721,2]
[423735391,1780348241000,-10000.0,0.00013735,2]
[423735386,1780348241000,-1430.34493756,0.00013699,2]
[423735397,1780348241000,-512.65,0.00013743,2]
[423735399,1780348241000,-500.0,0.00013743,2]
[423735403,1780348241000,-500.0,0.00013743,2]
[423735402,1780348241000,-500.0,0.00013743,2]
[423735405,1780348241000,-500.0,0.00013743,2]
[423735398,1780348241000,-500.0,0.00013743,2]
[423735400,1780348241000,-500.0,0.00013743,2]
[423735406,1780348241000,-150.0,0.0001376,2]
[423735401,1780348241000,-500.0,0.00013743,2]
[423735409,1780348241000,-150.0,0.0001378,2]
[423735404,1780348241000,-3179.06,0.00013743,2]
[423735411,1780348241000,-150.0,0.00013799,2]
[423735388,1780348241000,-150.0,0.00013702,2]
[423735442,1780348241000,-500.0,0.00013835,2]
[423735441,1780348241000,-500.0,0.00013835,2]
[423735476,1780348241000,-500.0,0.00013904,2]
[423735485,1780348241000,-150.0,0.00013955,2]
[423735481,1780348241000,-150.0,0.00013916,2]
[423735484,1780348241000,-150.0,0.00013935,2]
[423735480,1780348241000,-318.75,0.00013906,2]
[423735479,1780348241000,-500.0,0.00013904,2]
[423735483,1780348241000,-150.0,0.00013916,2]
[423735482,1780348241000,-150.0,0.00013916,2]
[423735487,1780348241000,-166.66,0.00013973,2]
[423735496,1780348241000,-151.0,0.0001399,2]
[423735486,1780348241000,-150.0,0.00013956,2]
[423735497,1780348241000,-151.0,0.0001399,2]
[423735488,1780348241000,-150.0,0.00013974,2]
[423735498,1780348241000,-151.0,0.0001399,2]
[423735489,1780348241000,-49089.34772959,0.0001398,2]
[423735490,1780348241000,-159.76440306,0.00013986,2]
[423735493,1780348241000,-2776.0,0.0001399,5]
[423735495,1780348241000,-151.0,0.0001399,2]
[423735494,1780348241000,-60000.0,0.0001399,2]
[423735492,1780348241000,-150.0,0.00013987,2]
[423735499,1780348241000,-150.0,0.00013994,2]
[423735501,1780348241000,-150.0,0.00013994,2]
[423735500,1780348241000,-150.0,0.00013994,2]
[423735504,1780348241000,-500.0,0.00014,2]
[423735503,1780348241000,-250.0,0.00014,2]
[423735502,1780348241000,-244.86363879,0.00013994,2]
[423735446,1780348241000,-500.0,0.00013835,2]
[423735477,1780348241000,-500.0,0.00013904,2]
[423735478,1780348241000,-500.0,0.00013904,2]
[423735491,1780348241000,-500.0,0.00013987,2]
[423735475,1780348241000,-500.0,0.00013904,2]
[423735443,1780348241000,-500.0,0.00013835,2]
[423735474,1780348241000,-2000.0,0.00013899,2]
[423735444,1780348241000,-500.0,0.00013835,2]
[423735445,1780348241000,-500.0,0.00013835,2]
[423735449,1780348241000,-500.0,0.00013835,2]
[423735453,1780348241000,-500.0,0.00013835,2]
[423735458,1780348241000,-500.0,0.00013835,2]
[423735450,1780348241000,-500.0,0.00013835,2]
[423735459,1780348241000,-500.0,0.00013835,2]
[423735451,1780348241000,-500.0,0.00013835,2]
[423735454,1780348241000,-500.0,0.00013835,2]
[423735456,1780348241000,-500.0,0.00013835,2]
[423735455,1780348241000,-500.0,0.00013835,2]
[423735457,1780348241000,-500.0,0.00013835,2]
[423735452,1780348241000,-500.0,0.00013835,2]
[423735470,1780348241000,-150.0,0.00013877,2]
[423735473,1780348241000,-150.0,0.00013896,2]
[423735461,1780348241000,-265.728221,0.00013835,2]
[423735468,1780348241000,-150.0,0.00013862,2]
[423735467,1780348241000,-150.0,0.00013857,2]
[423735469,1780348241000,-1294.52803039,0.00013875,2]
[423735466,1780348241000,-150.0,0.00013838,2]
[423735464,1780348241000,-265.728221,0.00013835,2]
[423735463,1780348241000,-265.728221,0.00013835,2]
[423735462,1780348241000,-265.728221,0.00013835,2]
[423735460,1780348241000,-298.342053,0.00013835,2]
[423735472,1780348241000,-151.0,0.00013888,2]
[423735471,1780348241000,-765.0,0.00013883,2]
[423735465,1780348241000,-166.66,0.00013836,2]
[423735547,1780348242000,-568.011354,0.0001413,2]
[423735552,1780348242000,-875.26459521,0.0001415,2]
[423735545,1780348242000,-568.011354,0.0001413,2]
[423735548,1780348242000,-568.011354,0.0001413,2]
[423735546,1780348242000,-568.011354,0.0001413,2]
[423735543,1780348242000,-150.0,0.0001413,2]
[423735540,1780348242000,-166.66,0.0001411,2]
[423735541,1780348242000,-150.0,0.0001411,2]
[423735539,1780348242000,-150.0,0.00014091,2]
[423735538,1780348242000,-500.0,0.00014088,2]
[423735542,1780348242000,-150.0,0.0001413,2]
[423735550,1780348242000,-150.0,0.00014143,2]
[423735544,1780348242000,-150.0,0.0001413,2]
[423735558,1780348242000,-587.0,0.00014196,2]
[423735575,1780348242000,-500.0,0.00014249,2]
[423735559,1780348242000,-150.0,0.00014208,2]
[423735557,1780348242000,-150.0,0.00014188,2]
[423735555,1780348242000,-151.0,0.00014174,2]
[423735553,1780348242000,-1294.52803039,0.0001415,2]
[423735551,1780348242000,-150.0,0.00014149,2]
[423735554,1780348242000,-150.0,0.00014169,2]
[423735561,1780348242000,-150.0,0.00014237,2]
[423735560,1780348242000,-150.0,0.00014227,2]
[423735556,1780348242000,-151.0,0.00014177,2]
[423735563,1780348242000,-150.0,0.00014237,2]
[423735564,1780348242000,-150.0,0.00014237,2]
[423735574,1780348242000,-500.0,0.00014249,2]
[423735549,1780348242000,-49089.34772959,0.00014133,2]
[423735562,1780348242000,-150.0,0.00014237,2]
[423735526,1780348242000,-3179.06,0.00014032,2]
[423735505,1780348242000,-500.0,0.00014,2]
[423735537,1780348242000,-285.36772064,0.00014073,2]
[423735506,1780348242000,-500.0,0.00014,2]
[423735509,1780348242000,-150.0,0.00014013,2]
[423735510,1780348242000,-150.0,0.00014023,2]
[423735507,1780348242000,-500.0,0.00014,2]
[423735511,1780348242000,-150.0,0.00014023,2]
[423735508,1780348242000,-526.88,0.00014,2]
[423735523,1780348242000,-500.0,0.00014032,2]
[423735524,1780348242000,-500.0,0.00014032,2]
[423735512,1780348242000,-2000.0,0.00014032,2]
[423735513,1780348242000,-2000.0,0.00014032,2]
[423735514,1780348242000,-1234.99,0.00014032,2]
[423735515,1780348242000,-819.52,0.00014032,2]
[423735516,1780348242000,-500.0,0.00014032,2]
[423735518,1780348242000,-500.0,0.00014032,2]
[423735519,1780348242000,-512.65,0.00014032,2]
[423735517,1780348242000,-722.51,0.00014032,2]
[423735522,1780348242000,-291.67528041,0.00014032,2]
[423735520,1780348242000,-500.0,0.00014032,2]
[423735521,1780348242000,-500.0,0.00014032,2]
[423735525,1780348242000,-500.0,0.00014032,2]
[423735527,1780348242000,-500.0,0.00014032,2]
[423735530,1780348242000,-150.0,0.0001405,2]
[423735532,1780348242000,-2000.0,0.00014053,2]
[423735529,1780348242000,-500.94201781,0.00014038,2]
[423735528,1780348242000,-150.0,0.00014033,2]
[423735531,1780348242000,-150.0,0.00014052,2]
[423735533,1780348242000,-181.25,0.00014053,2]
[423735536,1780348242000,-157.92481882,0.00014073,2]
[423735534,1780348242000,-150.0,0.00014072,2]
[423735535,1780348242000,-396.79786796,0.00014073,2]
[423735566,1780348242000,-209.31052136,0.0001424,2]
[423735565,1780348242000,-2351.0,0.00014239,2]
[423735570,1780348242000,-300.0,0.00014249,2]
[423735603,1780348242000,-151.0,0.00014305,2]
[423735605,1780348242000,-151.0,0.00014322,2]
[423735604,1780348242000,-150.0,0.00014305,2]
[423735608,1780348242000,-811.75,0.00014331,2]
[423735609,1780348242000,-153.27997121,0.00014335,2]
[423735612,1780348242000,-150.0,0.0001434,2]
[423735615,1780348242000,-150.0,0.0001434,2]
[423735611,1780348242000,-150.0,0.0001434,2]
[423735613,1780348242000,-150.0,0.0001434,2]
[423735610,1780348242000,-150.0,0.0001434,2]
[423735607,1780348242000,-150.0,0.00014331,2]
[423735614,1780348242000,-150.0,0.0001434,2]
[423735617,1780348242000,-150.0,0.00014344,2]
[423735616,1780348242000,-150.0,0.0001434,2]
[423735628,1780348242000,-433.0,0.00014414,2]
[423735618,1780348242000,-150.0,0.00014344,2]
[423735627,1780348242000,-150.0,0.00014402,2]
[423735621,1780348242000,-2222.0,0.00014364,2]
[423735619,1780348242000,-150.0,0.00014344,2]
[423735625,1780348242000,-166.66,0.00014384,2]
[423735623,1780348242000,-12332.74561459,0.00014373,2]
[423735626,1780348242000,-315.0,0.000144,2]
[423735620,1780348242000,-150.0,0.00014363,2]
[423735622,1780348242000,-10000.0,0.00014367,2]
[423735624,1780348242000,-150.0,0.00014383,2]
[423735629,1780348242000,-150.0,0.00014422,2]
[423735630,1780348242000,-150.0,0.00014424,2]
[423735632,1780348242000,-49089.34772959,0.0001444,2]
[423735567,1780348242000,-166.66,0.00014247,2]
[423735606,1780348242000,-150.0,0.00014325,2]
[423735597,1780348242000,-150.0,0.00014286,2]
[423735631,1780348242000,-314.99174282,0.00014439,2]
[423735592,1780348242000,-151.0,0.0001425,2]
[423735571,1780348242000,-300.0,0.00014249,2]
[423735572,1780348242000,-500.0,0.00014249,2]
[423735569,1780348242000,-300.0,0.00014249,2]
[423735573,1780348242000,-500.0,0.00014249,2]
[423735568,1780348242000,-150.0,0.00014247,2]
[423735578,1780348242000,-265.728221,0.0001425,2]
[423735576,1780348242000,-300.0,0.00014249,2]
[423735579,1780348242000,-265.728221,0.0001425,2]
[423735598,1780348242000,-300.0,0.00014286,2]
[423735585,1780348242000,-568.011354,0.0001425,2]
[423735587,1780348242000,-568.011354,0.0001425,2]
[423735588,1780348242000,-568.011354,0.0001425,2]
[423735582,1780348242000,-151.0,0.0001425,2]
[423735584,1780348242000,-500.0,0.0001425,2]
[423735580,1780348242000,-265.728221,0.0001425,2]
[423735581,1780348242000,-265.728221,0.0001425,2]
[423735577,1780348242000,-1135448.384112,0.0001425,2]
[423735595,1780348242000,-150.0,0.00014266,2]
[423735596,1780348242000,-841.2,0.00014279,2]
[423735594,1780348242000,-350.0,0.00014265,2]
[423735593,1780348242000,-151.0,0.0001425,2]
[423735591,1780348242000,-151.0,0.0001425,2]
[423735599,1780348242000,-49089.34772959,0.00014287,2]
[423735600,1780348242000,-500.0,0.00014291,2]
[423735589,1780348242000,-1500.0,0.0001425,2]
[423735602,1780348242000,-151.0,0.00014305,2]
[423735590,1780348242000,-151.0,0.0001425,2]
[423735586,1780348242000,-568.011354,0.0001425,2]
[423735583,1780348242000,-151.0,0.0001425,2]
[423735601,1780348242000,-151.0,0.00014305,2]
[423735671,1780348243000,-1227.873,0.00014528,2]
[423735681,1780348243000,-151.0,0.00014588,2]
[423735676,1780348243000,-150.0,0.00014539,2]
[423735675,1780348243000,-3639.0,0.00014528,2]
[423735673,1780348243000,-6068.0,0.00014528,2]
[423735682,1780348243000,-151.0,0.00014593,2]
[423735685,1780348243000,-731.29660926,0.000146,2]
[423735684,1780348243000,-150.0,0.00014597,2]
[423735683,1780348243000,-49089.34772959,0.00014593,2]
[423735667,1780348243000,-3551.0,0.00014528,2]
[423735662,1780348243000,-1357.0,0.00014528,2]
[423735686,1780348243000,-2008.0,0.000146,2]
[423735678,1780348243000,-150.0,0.00014558,2]
[423735699,1780348243000,-500.0,0.00014622,2]
[423735679,1780348243000,-150.0,0.00014558,2]
[423735677,1780348243000,-150.0,0.00014558,2]
[423735692,1780348243000,-150.0,0.00014617,2]
[423735687,1780348243000,-402.3080697,0.000146,2]
[423735689,1780348243000,-169.0,0.0001461,2]
[423735691,1780348243000,-150.0,0.00014612,2]
[423735690,1780348243000,-239.865368,0.00014611,2]
[423735693,1780348243000,-500.0,0.00014622,2]
[423735694,1780348243000,-574.58,0.00014622,2]
[423735695,1780348243000,-668.39,0.00014622,2]
[423735697,1780348243000,-1936.65,0.00014622,2]
[423735696,1780348243000,-500.0,0.00014622,2]
[423735698,1780348243000,-500.0,0.00014622,2]
[423735664,1780348243000,-929.0,0.00014528,2]
[423735680,1780348243000,-150.0,0.00014578,2]
[423735668,1780348243000,-1281.632,0.00014528,2]
[423735645,1780348243000,-500.0,0.00014466,2]
[423735658,1780348243000,-150.0,0.00014518,2]
[423735634,1780348243000,-150.0,0.00014451,2]
[423735633,1780348243000,-150.0,0.00014441,2]
[423735636,1780348243000,-150.0,0.00014461,2]
[423735639,1780348243000,-819.52,0.00014466,2]
[423735641,1780348243000,-722.51,0.00014466,2]
[423735638,1780348243000,-5652.03459385,0.00014464,2]
[423735640,1780348243000,-500.0,0.00014466,2]
[423735637,1780348243000,-151.0,0.00014463,2]
[423735635,1780348243000,-150.0,0.00014451,2]
[423735700,1780348243000,-151.0,0.00014622,2]
[423735643,1780348243000,-512.65,0.00014466,2]
[423735651,1780348243000,-150.0,0.0001448,2]
[423735653,1780348243000,-191.25,0.00014487,2]
[423735669,1780348243000,-537.0,0.00014528,2]
[423735642,1780348243000,-410.30161227,0.00014466,2]
[423735647,1780348243000,-500.0,0.00014466,2]
[423735644,1780348243000,-500.0,0.00014466,2]
[423735654,1780348243000,-1308.75,0.00014487,2]
[423735646,1780348243000,-500.0,0.00014466,2]
[423735648,1780348243000,-500.0,0.00014466,2]
[423735650,1780348243000,-500.0,0.00014466,2]
[423735649,1780348243000,-3179.06,0.00014466,2]
[423735657,1780348243000,-150.0,0.000145,2]
[423735655,1780348243000,-159.76440306,0.00014489,2]
[423735661,1780348243000,-944.82,0.00014527,2]
[423735659,1780348243000,-150.0,0.00014519,2]
[423735656,1780348243000,-741.83,0.00014497,2]
[423735660,1780348243000,-875.26459519,0.00014525,2]
[423735652,1780348243000,-150.0,0.00014487,2]
[423735712,1780348243000,-500.0,0.00014656,2]
[423735758,1780348243000,-424.50482648,0.00014687,2]
[423735702,1780348243000,-151.0,0.00014622,2]
[423735730,1780348243000,-152.20324461,0.00014686,2]
[423735735,1780348243000,-3179.06,0.00014686,2]
[423735740,1780348243000,-500.0,0.00014687,2]
[423735738,1780348243000,-1146.38298594,0.00014687,5]
[423735741,1780348243000,-500.0,0.00014687,2]
[423735745,1780348243000,-163.43660373,0.00014687,2]
[423735744,1780348243000,-500.0,0.00014687,2]
[423735743,1780348243000,-500.0,0.00014687,2]
[423735746,1780348243000,-574.58,0.00014687,2]
[423735739,1780348243000,-500.0,0.00014687,2]
[423735747,1780348243000,-574.58,0.00014687,2]
[423735742,1780348243000,-500.0,0.00014687,2]
[423735748,1780348243000,-574.58,0.00014687,2]
[423735734,1780348243000,-382.83023992,0.00014686,2]
[423735750,1780348243000,-574.58,0.00014687,2]
[423735752,1780348243000,-668.39,0.00014687,2]
[423735760,1780348243000,-1936.65,0.00014687,2]
[423735761,1780348243000,-1936.65,0.00014687,2]
[423735749,1780348243000,-574.58,0.00014687,2]
[423735759,1780348243000,-240.984577,0.00014687,2]
[423735756,1780348243000,-500.0,0.00014687,2]
[423735754,1780348243000,-668.39,0.00014687,2]
[423735755,1780348243000,-668.39,0.00014687,2]
[423735757,1780348243000,-500.0,0.00014687,2]
[423735763,1780348243000,-1936.65,0.00014687,2]
[423735762,1780348243000,-1936.65,0.00014687,2]
[423735764,1780348243000,-1936.65,0.00014687,2]
[423735703,1780348243000,-500.0,0.00014622,2]
[423735751,1780348243000,-668.39,0.00014687,2]
[423735729,1780348243000,-500.0,0.00014686,2]
[423735753,1780348243000,-668.39,0.00014687,2]
[423735732,1780348243000,-500.0,0.00014686,2]
[423735731,1780348243000,-500.0,0.00014686,2]
[423735704,1780348243000,-265.728221,0.00014622,2]
[423735701,1780348243000,-151.0,0.00014622,2]
[423735709,1780348243000,-11782.44151262,0.00014642,2]
[423735707,1780348243000,-265.728221,0.00014622,2]
[423735706,1780348243000,-265.728221,0.00014622,2]
[423735713,1780348243000,-150.0,0.00014665,2]
[423735708,1780348243000,-150.0,0.00014636,2]
[423735705,1780348243000,-265.728221,0.00014622,2]
[423735711,1780348243000,-150.0,0.00014655,2]
[423735714,1780348243000,-150.0,0.00014665,2]
[423735715,1780348243000,-1089.166496,0.0001467,2]
[423735721,1780348243000,-151.0,0.00014684,2]
[423735719,1780348243000,-568.011354,0.00014684,2]
[423735710,1780348243000,-731.29660922,0.0001465,2]
[423735722,1780348243000,-1249.5655082,0.00014684,2]
[423735723,1780348243000,-151.0,0.00014685,2]
[423735736,1780348243000,-500.0,0.00014686,2]
[423735733,1780348243000,-500.0,0.00014686,2]
[423735737,1780348243000,-300.0,0.00014686,2]
[423735727,1780348243000,-722.51,0.00014686,2]
[423735728,1780348243000,-512.65,0.00014686,2]
[423735725,1780348243000,-819.52,0.00014686,2]
[423735717,1780348243000,-568.011354,0.00014684,2]
[423735720,1780348243000,-568.011354,0.00014684,2]
[423735718,1780348243000,-568.011354,0.00014684,2]
[423735716,1780348243000,-150.0,0.00014675,2]
[423735724,1780348243000,-151.0,0.00014685,2]
[423735726,1780348243000,-500.0,0.00014686,2]
[423735784,1780348244000,-3417.4669575,0.00014688,2]
[423735772,1780348244000,-944.82,0.00014687,2]
[423735783,1780348244000,-151.0,0.00014687,2]
[423735780,1780348244000,-151.0,0.00014687,2]
[423735778,1780348244000,-500.0,0.00014687,2]
[423735779,1780348244000,-500.0,0.00014687,2]
[423735776,1780348244000,-500.0,0.00014687,2]
[423735787,1780348244000,-574.58,0.00014691,2]
[423735777,1780348244000,-500.0,0.00014687,2]
[423735767,1780348244000,-500.0,0.00014687,2]
[423735768,1780348244000,-500.0,0.00014687,2]
[423735771,1780348244000,-944.82,0.00014687,2]
[423735770,1780348244000,-944.82,0.00014687,2]
[423735766,1780348244000,-500.0,0.00014687,2]
[423735775,1780348244000,-500.0,0.00014687,2]
[423735774,1780348244000,-944.82,0.00014687,2]
[423735773,1780348244000,-944.82,0.00014687,2]
[423735781,1780348244000,-151.0,0.00014687,2]
[423735769,1780348244000,-515.06616302,0.00014687,2]
[423735786,1780348244000,-500.0,0.00014691,2]
[423735798,1780348244000,-731.29660922,0.000147,2]
[423735785,1780348244000,-250.0,0.00014688,2]
[423735807,1780348244000,-150.0,0.00014733,2]
[423735808,1780348244000,-200.0,0.00014734,2]
[423735805,1780348244000,-280.61209394,0.00014733,2]
[423735803,1780348244000,-500.0,0.00014725,2]
[423735806,1780348244000,-154.0,0.00014733,2]
[423735804,1780348244000,-1200.0,0.00014726,2]
[423735782,1780348244000,-151.0,0.00014687,2]
[423735800,1780348244000,-150.0,0.00014714,2]
[423735797,1780348244000,-8990.54979934,0.000147,2]
[423735802,1780348244000,-944.82,0.00014725,2]
[423735799,1780348244000,-150.0,0.00014705,2]
[423735796,1780348244000,-261.99512813,0.000147,2]
[423735794,1780348244000,-13748.79063103,0.000147,2]
[423735793,1780348244000,-200.0,0.00014697,2]
[423735789,1780348244000,-1936.65,0.00014691,2]
[423735792,1780348244000,-151.0,0.00014697,2]
[423735791,1780348244000,-150.0,0.00014694,2]
[423735790,1780348244000,-500.0,0.00014691,2]
[423735788,1780348244000,-668.39,0.00014691,2]
[423735801,1780348244000,-2000.0,0.00014719,2]
[423735811,1780348245000,-499.0,0.0001474,2]
[423735814,1780348245000,-4262.54711813,0.00014747,2]
[423735810,1780348245000,-350.0,0.0001474,3]
[423735809,1780348245000,-10000.0,0.0001474,2]
[423735815,1780348245000,-38943.6261,0.00014747,2]
[423735812,1780348245000,-391.0,0.00014742,2]
[423735821,1780348245000,-2682.88785073,0.00014747,2]
[423735816,1780348245000,-360.140789,0.00013425,2]
[423735817,1780348245000,-1327.35687374,0.00014747,2]
[423735818,1780348245000,-406.5945204,0.00014747,2]
[423735820,1780348245000,-163.700358,0.00014096,2]
[423735819,1780348245000,-151.0,0.00013835,2]
[423735822,1780348245000,-364.47937912,0.00014747,2]
[423735813,1780348245000,-4796.1743794,0.00014746,2]
[423735844,1780348246000,-147.82361759,0.00013699,2]
[423735843,1780348246000,-3061.20138241,0.00013699,2]
[423735842,1780348246000,-847.44,0.00013699,2]
[423735856,1780348502000,500.0,0.0003013,120]
[423735857,1780348539000,190.77672688,0.00030136,120]
[423735861,1780348846000,-152.0,0.00013252,30]
[423735862,1780348857000,500.0,0.0003013,120]
[423735882,1780349208000,500.0,0.0003013,120]
[423735884,1780349218000,-227.45528215,0.00012093,2]
[423735883,1780349218000,-152.0,0.00011973,7]
[423735889,1780349340000,2000.0,0.00030135,120]
[423735928,1780349432000,-1000.0,0.00013356,2]
[423735933,1780349432000,-152.14,0.0001341,2]
[423735905,1780349432000,-445.50024672,0.00012593,2]
[423735922,1780349432000,-152.14,0.00013107,2]
[423735926,1780349432000,-250.0,0.00013279,2]
[423735920,1780349432000,-152.14,0.00012956,2]
[423735915,1780349432000,-2000.0,0.00012808,2]
[423735913,1780349432000,-867.91,0.00012753,2]
[423735930,1780349432000,-500.0,0.00013356,2]
[423735911,1780349432000,-160.49,0.00012739,2]
[423735906,1780349432000,-15736.4187595,0.00012593,2]
[423735897,1780349432000,-719.39035795,0.00011793,2]
[423735907,1780349432000,-166.27423638,0.00012624,2]
[423735909,1780349432000,-589.55,0.00012724,2]
[423735908,1780349432000,-200.0,0.00012694,2]
[423735903,1780349432000,-801.28285481,0.00012592,2]
[423735902,1780349432000,-398.71714519,0.00012592,2]
[423735901,1780349432000,-300.0,0.00012592,2]
[423735924,1780349432000,-152.14,0.00013259,2]
[423735898,1780349432000,-151.11,0.0001209,2]
[423735900,1780349432000,-150.0,0.00012215,2]
[423735899,1780349432000,-2.65092162,0.00012093,2]
[423735896,1780349432000,-853.06784285,0.00011793,2]
[423735904,1780349432000,-176.24399378,0.00012593,2]
[423735935,1780349432000,-2000.0,0.00013414,2]
[423735918,1780349432000,-160.0,0.00012952,2]
[423735939,1780349432000,-150.0,0.00013488,2]
[423735937,1780349432000,-150.0,0.00013488,2]
[423735990,1780349432000,-1240.49,0.00013698,2]
[423735988,1780349432000,-1240.49,0.00013698,2]
[423735987,1780349432000,-500.0,0.00013698,2]
[423735983,1780349432000,-500.0,0.00013698,2]
[423735985,1780349432000,-500.0,0.00013698,2]
[423735980,1780349432000,-2649.21,0.00013698,2]
[423735977,1780349432000,-2649.21,0.00013698,2]
[423735975,1780349432000,-500.0,0.00013698,2]
[423735966,1780349432000,-150.0,0.00013659,2]
[423735972,1780349432000,-500.0,0.00013698,2]
[423735971,1780349432000,-500.0,0.00013698,2]
[423735978,1780349432000,-2649.21,0.00013698,2]
[423735964,1780349432000,-150.0,0.00013659,2]
[423735969,1780349432000,-500.0,0.00013698,2]
[423735947,1780349432000,-150.0,0.00013488,2]
[423735945,1780349432000,-150.0,0.00013488,2]
[423735949,1780349432000,-150.0,0.00013488,2]
[423735943,1780349432000,-150.0,0.00013488,2]
[423735951,1780349432000,-150.0,0.0001353,2]
[423735941,1780349432000,-150.0,0.00013488,2]
[423735958,1780349432000,-2447.767,0.00013599,2]
[423735956,1780349432000,-150.0,0.00013573,2]
[423735960,1780349432000,-166.27423638,0.00013602,2]
[423735962,1780349432000,-150.0,0.00013616,2]
[423735954,1780349432000,-152.14,0.00013562,2]
[423736025,1780349433000,-504.72,0.0001382,2]
[423736032,1780349433000,-1240.49,0.00013834,2]
[423736031,1780349433000,-500.0,0.00013834,2]
[423736017,1780349433000,-172.47512054,0.00013773,2]
[423736019,1780349433000,-150.0,0.00013787,2]
[423736034,1780349433000,-166.66,0.00013836,2]
[423736021,1780349433000,-420.0,0.00013815,2]
[423736036,1780349433000,-1680.0,0.00013851,2]
[423736038,1780349433000,-152.14,0.00013865,2]
[423736042,1780349433000,-150.0,0.00013873,2]
[423736023,1780349433000,-155.5,0.00013816,2]
[423736029,1780349433000,-150.0,0.0001383,2]
[423736044,1780349433000,-150.0,0.00013916,2]
[423736015,1780349433000,-820.17,0.00013773,2]
[423736013,1780349433000,-150.0,0.00013745,2]
[423736011,1780349433000,-500.0,0.00013743,2]
[423736009,1780349433000,-163.43660373,0.00013743,2]
[423735996,1780349433000,-200.0,0.00013699,2]
[423736005,1780349433000,-150.0,0.00013737,2]
[423736007,1780349433000,-150.0,0.00013737,2]
[423735992,1780349433000,-1240.49,0.00013698,2]
[423735995,1780349433000,-166.66,0.00013699,2]
[423735998,1780349433000,-150.0,0.00013702,2]
[423736001,1780349433000,-152.14,0.00013713,2]
[423736002,1780349433000,-150.0,0.00013737,2]
[423736027,1780349433000,-500.0,0.00013829,2]
[423736046,1780349433000,-14147.29907627,0.00013932,2]
[423736062,1780349433000,-150.0,0.00013959,2]